[Event "*** SCC Grand Prix: Titled Tuesday Blitz"]
[Site "Chess.com"]
[Date "2020.07.14"]
[Round "10"]
[White "Margarita2907"]
[Black "HanSchut"]
[Result "1/2-1/2"]
[WhiteElo "2082"]
[BlackElo "2290"]
[TimeControl "180+1"]
[EndTime "12:00:31 PDT"]
[Termination "Game drawn by stalemate"]

1. e4 {[%clk 0:03:00.9]} 1... c5 {[%clk 0:02:59.5]} 2. Nf3 {[%clk 0:03:00.2]}
2... d6 {[%clk 0:03:00]} 3. d4 {[%clk 0:02:59.5]} 3... cxd4 {[%clk 0:03:00.9]}
4. Nxd4 {[%clk 0:02:59.8]} 4... Nf6 {[%clk 0:03:01.7]} 5. Nc3 {[%clk 0:02:57.5]}
5... a6 {[%clk 0:03:02.5]} 6. Be2 {[%clk 0:02:55.7]} 6... e5 {[%clk 0:03:00.1]}
7. Nb3 {[%clk 0:02:55.2]} 7... Be7 {[%clk 0:03:00.1]} 8. O-O {[%clk 0:02:53.7]}
8... O-O {[%clk 0:03:00.1]} 9. Be3 {[%clk 0:02:52.7]} 9... Be6 {[%clk
0:03:00.5]} 10. Qd3 {[%clk 0:02:51.1]} 10... Nbd7 {[%clk 0:02:52]} 11. Nd5
{[%clk 0:02:48.5]} 11... Bxd5 {[%clk 0:02:48.7]} 12. exd5 {[%clk 0:02:48]} 12...
Rc8 {[%clk 0:02:30.6]} 13. c4 {[%clk 0:02:46.8]} 13... b6 {[%clk 0:02:25]} 14.
Rac1 {[%clk 0:02:43.5]} 14... a5 {[%clk 0:02:24.4]} 15. a4 {[%clk 0:02:40.6]}
15... Ne8 {[%clk 0:02:21.5]} 16. f4 {[%clk 0:02:33.4]} 16... f5 {[%clk
0:02:17.6]} 17. fxe5 {[%clk 0:02:32.6]} 17... Nxe5 {[%clk 0:02:13.3]} 18. Qd4
{[%clk 0:02:28]} 18... Bf6 {[%clk 0:02:11.6]} 19. Qxb6 {[%clk 0:02:25.1]} 19...
Qxb6 {[%clk 0:02:02.8]} 20. Bxb6 {[%clk 0:02:24.4]} 20... Rb8 {[%clk 0:02:03.5]}
21. c5 {[%clk 0:02:17.1]} 21... dxc5 {[%clk 0:02:02.5]} 22. Bxc5 {[%clk
0:02:16.3]} 22... Rxb3 {[%clk 0:02:02.4]} 23. Bxf8 {[%clk 0:02:14.5]} 23... Kxf8
{[%clk 0:02:00.4]} 24. Rc8 {[%clk 0:02:08.8]} 24... Ke7 {[%clk 0:01:54.7]} 25.
Bb5 {[%clk 0:02:04.9]} 25... Nd6 {[%clk 0:01:46.1]} 26. Rb8 {[%clk 0:01:57]}
26... Rxb2 {[%clk 0:01:37.1]} 27. Rc1 {[%clk 0:01:53.3]} 27... Nec4 {[%clk
0:01:16.2]} 28. Ra8 {[%clk 0:01:18.3]} 28... Bd4+ {[%clk 0:01:12.1]} 29. Kh1
{[%clk 0:01:15.7]} 29... Nxb5 {[%clk 0:01:09]} 30. axb5 {[%clk 0:01:10.2]} 30...
Rxb5 {[%clk 0:01:08.6]} 31. g3 {[%clk 0:01:07.3]} 31... Ne3 {[%clk 0:00:59.9]}
32. Ra6 {[%clk 0:01:01.4]} 32... Rxd5 {[%clk 0:00:57.3]} 33. Rc7+ {[%clk
0:00:59.3]} 33... Rd7 {[%clk 0:00:53.5]} 34. Rxd7+ {[%clk 0:00:56.9]} 34... Kxd7
{[%clk 0:00:53.8]} 35. Rxa5 {[%clk 0:00:57.4]} 35... Ke6 {[%clk 0:00:50.6]} 36.
Ra4 {[%clk 0:00:55.4]} 36... Ke5 {[%clk 0:00:42.9]} 37. Kg1 {[%clk 0:00:49.4]}
37... Ke4 {[%clk 0:00:38.1]} 38. Kf2 {[%clk 0:00:44.5]} 38... h5 {[%clk
0:00:36.2]} 39. h4 {[%clk 0:00:42.9]} 39... Nd5+ {[%clk 0:00:24.8]} 40. Kg2
{[%clk 0:00:39.5]} 40... f4 {[%clk 0:00:22.7]} 41. gxf4 {[%clk 0:00:37.3]} 41...
Nxf4+ {[%clk 0:00:22.9]} 42. Kg3 {[%clk 0:00:35.7]} 42... Ne2+ {[%clk
0:00:21.9]} 43. Kh3 {[%clk 0:00:33.6]} 43... Kf3 {[%clk 0:00:17.8]} 44. Ra5
{[%clk 0:00:28.4]} 44... Be3 {[%clk 0:00:10]} 45. Kh2 {[%clk 0:00:20.4]} 45...
Nf4 {[%clk 0:00:10.5]} 46. Rg5 {[%clk 0:00:14.7]} 46... g6 {[%clk 0:00:11.1]}
47. Ra5 {[%clk 0:00:13.6]} 47... Bf2 {[%clk 0:00:10.6]} 48. Ra3+ {[%clk
0:00:12.5]} 48... Kg4 {[%clk 0:00:11]} 49. Ra4 {[%clk 0:00:12]} 49... Bxh4
{[%clk 0:00:10.9]} 50. Kg1 {[%clk 0:00:10.7]} 50... Bg5 {[%clk 0:00:10.9]} 51.
Rb4 {[%clk 0:00:09.7]} 51... h4 {[%clk 0:00:11.2]} 52. Kh1 {[%clk 0:00:08.9]}
52... h3 {[%clk 0:00:10.3]} 53. Rb3 {[%clk 0:00:08.9]} 53... Bf6 {[%clk
0:00:10.2]} 54. Rb6 {[%clk 0:00:08.3]} 54... Bd4 {[%clk 0:00:09.4]} 55. Rb3
{[%clk 0:00:06.8]} 55... g5 {[%clk 0:00:09]} 56. Rb4 {[%clk 0:00:06.3]} 56...
Bf2 {[%clk 0:00:08.2]} 57. Rb2 {[%clk 0:00:05.9]} 57... Bh4 {[%clk 0:00:08.5]}
58. Rb4 {[%clk 0:00:05.5]} 58... Kg3 {[%clk 0:00:07.6]} 59. Rb3+ {[%clk
0:00:05.4]} 59... Kg4 {[%clk 0:00:08]} 60. Rb4 {[%clk 0:00:05.5]} 60... Bf2
{[%clk 0:00:08.4]} 61. Rb3 {[%clk 0:00:05.1]} 61... Bd4 {[%clk 0:00:06.9]} 62.
Rb4 {[%clk 0:00:05.1]} 62... Be3 {[%clk 0:00:07.6]} 63. Rb3 {[%clk 0:00:05.4]}
63... Kf3 {[%clk 0:00:08.1]} 64. Rb4 {[%clk 0:00:04.7]} 64... g4 {[%clk
0:00:08.4]} 65. Rb3 {[%clk 0:00:04.5]} 65... Ne2 {[%clk 0:00:08]} 66. Rb2 {[%clk
0:00:03.1]} 66... Bf4 {[%clk 0:00:06.2]} 67. Rb3+ {[%clk 0:00:01.8]} 67... Kf2
{[%clk 0:00:05.8]} 68. Rb2 {[%clk 0:00:02.3]} 68... Be3 {[%clk 0:00:03.2]} 69.
Rb3 {[%clk 0:00:02]} 69... g3 {[%clk 0:00:02.1]} 70. Rxe3 {[%clk 0:00:01.7]}
70... Kxe3 {[%clk 0:00:02.3]} 1/2-1/2

[Event "*** SCC Grand Prix: Titled Tuesday Blitz"]
[Site "Chess.com"]
[Date "2020.07.14"]
[Round "10"]
[White "Titus369"]
[Black "temus_galaktionov"]
[Result "0-1"]
[WhiteElo "2524"]
[BlackElo "2678"]
[TimeControl "180+1"]
[EndTime "12:00:36 PDT"]
[Termination "temus_galaktionov won on time"]

1. e4 {[%clk 0:03:00.9]} 1... c6 {[%clk 0:03:00.9]} 2. d4 {[%clk 0:02:53.8]}
2... g6 {[%clk 0:03:01.8]} 3. Nf3 {[%clk 0:02:52.9]} 3... Bg7 {[%clk 0:03:02]}
4. h3 {[%clk 0:02:40.1]} 4... d6 {[%clk 0:03:02.9]} 5. Nbd2 {[%clk 0:02:39.7]}
5... Nd7 {[%clk 0:03:02.3]} 6. c3 {[%clk 0:02:38.3]} 6... Ngf6 {[%clk
0:02:59.9]} 7. Bd3 {[%clk 0:02:37.4]} 7... e5 {[%clk 0:02:58.3]} 8. dxe5 {[%clk
0:02:36.7]} 8... dxe5 {[%clk 0:02:59.2]} 9. Nc4 {[%clk 0:02:35.3]} 9... Qe7
{[%clk 0:02:58.7]} 10. Bc2 {[%clk 0:02:33.3]} 10... O-O {[%clk 0:02:58.1]} 11.
Qd6 {[%clk 0:02:32.4]} 11... Qxd6 {[%clk 0:02:55.8]} 12. Nxd6 {[%clk 0:02:33.3]}
12... Nc5 {[%clk 0:02:53.3]} 13. b4 {[%clk 0:02:28.4]} 13... Ne6 {[%clk
0:02:50.1]} 14. Be3 {[%clk 0:02:19.4]} 14... Ne8 {[%clk 0:02:49.3]} 15. O-O-O
{[%clk 0:02:17.8]} 15... Nxd6 {[%clk 0:02:47]} 16. Rxd6 {[%clk 0:02:18.7]} 16...
a5 {[%clk 0:02:40.6]} 17. a3 {[%clk 0:02:13]} 17... Re8 {[%clk 0:02:39.8]} 18.
Kb2 {[%clk 0:02:11.1]} 18... h6 {[%clk 0:02:35.7]} 19. Rhd1 {[%clk 0:02:10.5]}
19... axb4 {[%clk 0:02:25.7]} 20. axb4 {[%clk 0:02:09.9]} 20... Kf8 {[%clk
0:02:19.5]} 21. Bb3 {[%clk 0:02:08.8]} 21... Ke7 {[%clk 0:02:16.9]} 22. R6d3
{[%clk 0:01:57.6]} 22... Kf6 {[%clk 0:02:10.1]} 23. Nd2 {[%clk 0:01:52.2]} 23...
b5 {[%clk 0:01:57.8]} 24. Rd6 {[%clk 0:01:42.8]} 24... Ra6 {[%clk 0:01:54.5]}
25. Ra1 {[%clk 0:01:38]} 25... Rxa1 {[%clk 0:01:48.5]} 26. Kxa1 {[%clk
0:01:38.9]} 26... Bb7 {[%clk 0:01:48.1]} 27. Rd7 {[%clk 0:01:37]} 27... Ra8+
{[%clk 0:01:47.7]} 28. Kb2 {[%clk 0:01:35.5]} 28... Bc8 {[%clk 0:01:47.7]} 29.
Ra7 {[%clk 0:01:35.6]} 29... Rxa7 {[%clk 0:01:45.8]} 30. Bxa7 {[%clk 0:01:36.5]}
30... Nf4 {[%clk 0:01:44.5]} 31. Nf3 {[%clk 0:01:27.7]} 31... Nxg2 {[%clk
0:01:38.8]} 32. Bb8 {[%clk 0:01:25.6]} 32... Ke7 {[%clk 0:01:29.3]} 33. Bxe5
{[%clk 0:01:24.4]} 33... f6 {[%clk 0:01:26.9]} 34. Bg3 {[%clk 0:01:14.2]} 34...
Bxh3 {[%clk 0:01:24.9]} 35. Nd4 {[%clk 0:01:11.6]} 35... Bd7 {[%clk 0:01:22.9]}
36. Bd1 {[%clk 0:01:05.5]} 36... h5 {[%clk 0:00:59]} 37. Bf3 {[%clk 0:01:03.6]}
37... Ne1 {[%clk 0:00:58.9]} 38. Be2 {[%clk 0:00:55.4]} 38... Bh6 {[%clk
0:00:58.5]} 39. e5 {[%clk 0:00:47.4]} 39... fxe5 {[%clk 0:00:49.9]} 40. Bxe5
{[%clk 0:00:48.3]} 40... h4 {[%clk 0:00:35.7]} 41. c4 {[%clk 0:00:37.8]} 41...
bxc4 {[%clk 0:00:31.6]} 42. Bxc4 {[%clk 0:00:38.7]} 42... h3 {[%clk 0:00:29.8]}
43. Bf1 {[%clk 0:00:21]} 43... Bd2 {[%clk 0:00:23.6]} 44. Bxh3 {[%clk
0:00:18.9]} 44... Bxh3 {[%clk 0:00:21.7]} 45. Nxc6+ {[%clk 0:00:19.3]} 45... Ke6
{[%clk 0:00:21.8]} 46. Bc3 {[%clk 0:00:17]} 46... Bxc3+ {[%clk 0:00:20]} 47.
Kxc3 {[%clk 0:00:17.9]} 47... Nf3 {[%clk 0:00:19.1]} 48. b5 {[%clk 0:00:14.5]}
48... Kd6 {[%clk 0:00:18.5]} 49. Nd8 {[%clk 0:00:13.3]} 49... Bf5 {[%clk
0:00:16.1]} 50. b6 {[%clk 0:00:12]} 50... Ne5 {[%clk 0:00:14.8]} 51. f4 {[%clk
0:00:06.1]} 51... Nd7 {[%clk 0:00:14.6]} 52. Kd4 {[%clk 0:00:03.6]} 52... Nxb6
{[%clk 0:00:14.4]} 53. Nf7+ {[%clk 0:00:03.9]} 53... Ke6 {[%clk 0:00:14.6]} 54.
Ng5+ {[%clk 0:00:04]} 54... Ke7 {[%clk 0:00:14.7]} 55. Nf3 {[%clk 0:00:01.5]}
55... Nd7 {[%clk 0:00:14.8]} 56. Nh4 {[%clk 0:00:01.6]} 56... Ke6 {[%clk
0:00:14.5]} 57. Nf3 {[%clk 0:00:01.9]} 57... Nf6 {[%clk 0:00:14.2]} 58. Ng5+
{[%clk 0:00:02.8]} 58... Ke7 {[%clk 0:00:14.3]} 59. Nf3 {[%clk 0:00:03.7]} 59...
Ng4 {[%clk 0:00:13.6]} 60. Nh4 {[%clk 0:00:03.6]} 60... Kf6 {[%clk 0:00:13.6]}
61. Nf3 {[%clk 0:00:03.5]} 61... Nf2 {[%clk 0:00:13.1]} 62. Ng5 {[%clk 0:00:03]}
62... Nh3 {[%clk 0:00:12.2]} 63. Nf3 {[%clk 0:00:01.5]} 63... Nxf4 {[%clk
0:00:11.7]} 64. Ke3 {[%clk 0:00:02.4]} 64... Ne6 {[%clk 0:00:11.3]} 65. Kf2
{[%clk 0:00:02.7]} 65... Bg4 {[%clk 0:00:11.1]} 66. Nh4 {[%clk 0:00:02.6]} 66...
g5 {[%clk 0:00:10.9]} 67. Ng2 {[%clk 0:00:03]} 67... Nf4 {[%clk 0:00:07.2]} 68.
Ne3 {[%clk 0:00:02.7]} 68... Be6 {[%clk 0:00:07.7]} 69. Kg3 {[%clk 0:00:02.5]}
69... Ke5 {[%clk 0:00:07.6]} 70. Nc2 {[%clk 0:00:02.9]} 70... Ke4 {[%clk
0:00:07.5]} 71. Nb4 {[%clk 0:00:03.4]} 71... g4 {[%clk 0:00:07.5]} 72. Nc6
{[%clk 0:00:03.8]} 72... Ne2+ {[%clk 0:00:07.1]} 73. Kg2 {[%clk 0:00:04]} 73...
Kf4 {[%clk 0:00:04.1]} 74. Ne7 {[%clk 0:00:04.1]} 74... g3 {[%clk 0:00:03.7]}
75. Ng6+ {[%clk 0:00:04.4]} 75... Ke3 {[%clk 0:00:03.7]} 76. Nh4 {[%clk
0:00:04]} 76... Bd5+ {[%clk 0:00:03.8]} 77. Kh3 {[%clk 0:00:03.4]} 77... Kf2
{[%clk 0:00:03.6]} 78. Kg4 {[%clk 0:00:03.1]} 78... Be6+ {[%clk 0:00:02.6]} 79.
Kg5 {[%clk 0:00:02.8]} 79... Bc8 {[%clk 0:00:02.7]} 80. Kf6 {[%clk 0:00:03]}
80... Nd4 {[%clk 0:00:03]} 81. Kg5 {[%clk 0:00:02.1]} 81... Nf3+ {[%clk
0:00:02.1]} 0-1

[Event "*** SCC Grand Prix: Titled Tuesday Blitz"]
[Site "Chess.com"]
[Date "2020.07.14"]
[Round "10"]
[White "Anton_Demchenko"]
[Black "warmoatmeal"]
[Result "1-0"]
[WhiteElo "2792"]
[BlackElo "2356"]
[TimeControl "180+1"]
[EndTime "12:00:36 PDT"]
[Termination "Anton_Demchenko won by resignation"]

1. e4 {[%clk 0:02:59.9]} 1... c6 {[%clk 0:02:57.8]} 2. d4 {[%clk 0:02:56.9]}
2... d5 {[%clk 0:02:58.4]} 3. Nd2 {[%clk 0:02:57.6]} 3... dxe4 {[%clk
0:02:59.3]} 4. Nxe4 {[%clk 0:02:55.7]} 4... Nf6 {[%clk 0:02:56.2]} 5. Nxf6+
{[%clk 0:02:54.2]} 5... exf6 {[%clk 0:02:57.1]} 6. c3 {[%clk 0:02:55.1]} 6...
Bd6 {[%clk 0:02:56.7]} 7. Bd3 {[%clk 0:02:55.8]} 7... O-O {[%clk 0:02:56.5]} 8.
Qc2 {[%clk 0:02:56.7]} 8... Re8+ {[%clk 0:02:55.1]} 9. Ne2 {[%clk 0:02:57.6]}
9... h5 {[%clk 0:02:55.3]} 10. h3 {[%clk 0:02:53.4]} 10... Nd7 {[%clk
0:02:42.4]} 11. O-O {[%clk 0:02:50.4]} 11... h4 {[%clk 0:02:35.6]} 12. Bf4
{[%clk 0:02:45.4]} 12... Nf8 {[%clk 0:02:35.6]} 13. Bxd6 {[%clk 0:02:41.9]}
13... Qxd6 {[%clk 0:02:36.5]} 14. Rfe1 {[%clk 0:02:38.8]} 14... Bd7 {[%clk
0:02:36.5]} 15. Rad1 {[%clk 0:02:20.6]} 15... Re7 {[%clk 0:02:33.9]} 16. Nc1
{[%clk 0:02:17.2]} 16... Rae8 {[%clk 0:02:34.1]} 17. Rxe7 {[%clk 0:02:16.8]}
17... Rxe7 {[%clk 0:02:35]} 18. Qd2 {[%clk 0:02:10.5]} 18... Ng6 {[%clk
0:02:33.7]} 19. Ne2 {[%clk 0:02:08.5]} 19... a5 {[%clk 0:02:20.7]} 20. c4 {[%clk
0:01:52.1]} 20... b6 {[%clk 0:01:59.9]} 21. b3 {[%clk 0:01:50.1]} 21... f5
{[%clk 0:01:54.7]} 22. Bc2 {[%clk 0:01:44.4]} 22... Kf8 {[%clk 0:01:25.2]} 23.
Bd3 {[%clk 0:01:14]} 23... Kg8 {[%clk 0:01:17.2]} 24. Qc2 {[%clk 0:01:14.4]}
24... Nf4 {[%clk 0:01:12.1]} 25. Nxf4 {[%clk 0:01:10.5]} 25... Qxf4 {[%clk
0:01:13]} 26. Bf1 {[%clk 0:01:11]} 26... g6 {[%clk 0:01:09.8]} 27. Qc3 {[%clk
0:01:06.9]} 27... Kh7 {[%clk 0:00:54.9]} 28. a3 {[%clk 0:01:03.8]} 28... g5
{[%clk 0:00:49.8]} 29. c5 {[%clk 0:00:54.5]} 29... b5 {[%clk 0:00:45.7]} 30. d5
{[%clk 0:00:48.7]} 30... g4 {[%clk 0:00:36.6]} 31. Qf6 {[%clk 0:00:41.8]} 31...
Qe5 {[%clk 0:00:26.5]} 32. Qxh4+ {[%clk 0:00:40.2]} 32... Kg7 {[%clk 0:00:27]}
33. hxg4 {[%clk 0:00:36]} 33... fxg4 {[%clk 0:00:27.9]} 34. dxc6 {[%clk
0:00:36.4]} 34... Bxc6 {[%clk 0:00:28.1]} 35. Qxg4+ {[%clk 0:00:36.7]} 35... Kf8
{[%clk 0:00:17.1]} 36. b4 {[%clk 0:00:36.5]} 36... axb4 {[%clk 0:00:16.5]} 37.
axb4 {[%clk 0:00:37.4]} 37... Re6 {[%clk 0:00:14.6]} 38. Qd4 {[%clk 0:00:28.8]}
38... Qxd4 {[%clk 0:00:13.3]} 39. Rxd4 {[%clk 0:00:28.5]} 39... Re1 {[%clk
0:00:14]} 40. f3 {[%clk 0:00:28.4]} 40... Rb1 {[%clk 0:00:12.9]} 41. Kf2 {[%clk
0:00:28.8]} 41... f6 {[%clk 0:00:12.2]} 42. Bd3 {[%clk 0:00:28.1]} 42... Rb2+
{[%clk 0:00:11.7]} 43. Kg3 {[%clk 0:00:28]} 43... Be8 {[%clk 0:00:11.7]} 44. Be4
{[%clk 0:00:24.4]} 44... Rb3 {[%clk 0:00:10.3]} 45. Kf4 {[%clk 0:00:24.4]} 45...
Ke7 {[%clk 0:00:10.1]} 46. g4 {[%clk 0:00:24.5]} 46... Bd7 {[%clk 0:00:09.3]}
47. Bd5 {[%clk 0:00:22.3]} 47... Rc3 {[%clk 0:00:08.4]} 48. Re4+ {[%clk
0:00:22.2]} 48... Kd8 {[%clk 0:00:07.8]} 49. Be6 {[%clk 0:00:20.1]} 49... Be8
{[%clk 0:00:03.8]} 50. Rd4+ {[%clk 0:00:15.9]} 50... Ke7 {[%clk 0:00:04.3]} 51.
Bd5 {[%clk 0:00:16.1]} 51... Bd7 {[%clk 0:00:04.4]} 52. Be4 {[%clk 0:00:14.8]}
52... Be8 {[%clk 0:00:03.4]} 53. Bb7 {[%clk 0:00:11.5]} 53... Bd7 {[%clk
0:00:03.3]} 54. Re4+ {[%clk 0:00:05.8]} 54... Kd8 {[%clk 0:00:03.9]} 55. Bd5
{[%clk 0:00:06.6]} 55... Rc1 {[%clk 0:00:03.1]} 56. Be6 {[%clk 0:00:06.3]} 56...
Be8 {[%clk 0:00:03.1]} 57. Kf5 {[%clk 0:00:06.4]} 57... Ke7 {[%clk 0:00:03.6]}
58. Bd5+ {[%clk 0:00:05.2]} 58... Kd8 {[%clk 0:00:02.4]} 59. Kxf6 {[%clk
0:00:05.8]} 59... Rc3 {[%clk 0:00:02.1]} 60. f4 {[%clk 0:00:05.8]} 60... Rg3
{[%clk 0:00:01.3]} 61. g5 {[%clk 0:00:05.9]} 61... Bd7 {[%clk 0:00:02.2]} 62.
Be6 {[%clk 0:00:06.2]} 62... Rf3 {[%clk 0:00:02.1]} 63. f5 {[%clk 0:00:06.4]}
63... Bxe6 {[%clk 0:00:03]} 64. Kxe6 {[%clk 0:00:07]} 64... Kc7 {[%clk
0:00:03.9]} 65. g6 {[%clk 0:00:07.4]} 65... Rc3 {[%clk 0:00:04.6]} 66. Ke5
{[%clk 0:00:07.3]} 66... Rg3 {[%clk 0:00:04.4]} 67. Kf6 {[%clk 0:00:07.3]} 67...
Re3 {[%clk 0:00:04.5]} 68. Rxe3 {[%clk 0:00:07.3]} 68... Kc6 {[%clk 0:00:04.6]}
69. Re6+ {[%clk 0:00:07.1]} 69... Kd5 {[%clk 0:00:05.5]} 70. Re1 {[%clk
0:00:06.8]} 1-0

[Event "*** SCC Grand Prix: Titled Tuesday Blitz"]
[Site "Chess.com"]
[Date "2020.07.14"]
[Round "10"]
[White "profofchess"]
[Black "tk22h"]
[Result "1-0"]
[WhiteElo "2470"]
[BlackElo "2318"]
[TimeControl "180+1"]
[EndTime "12:00:45 PDT"]
[Termination "profofchess won on time"]

1. e4 {[%clk 0:03:00.9]} 1... e5 {[%clk 0:02:56.4]} 2. Nf3 {[%clk 0:03:00.3]}
2... Nc6 {[%clk 0:02:53.5]} 3. Nc3 {[%clk 0:03:00.4]} 3... Nf6 {[%clk
0:02:52.9]} 4. Bb5 {[%clk 0:02:58.4]} 4... Bb4 {[%clk 0:02:51.9]} 5. O-O {[%clk
0:02:57.3]} 5... O-O {[%clk 0:02:50.8]} 6. d3 {[%clk 0:02:57.4]} 6... Bxc3
{[%clk 0:02:51]} 7. bxc3 {[%clk 0:02:57.4]} 7... d6 {[%clk 0:02:51.6]} 8. Re1
{[%clk 0:02:52.6]} 8... Bd7 {[%clk 0:02:47.7]} 9. d4 {[%clk 0:02:45]} 9... Qe7
{[%clk 0:02:45.9]} 10. a4 {[%clk 0:02:40.3]} 10... a6 {[%clk 0:02:45]} 11. Bd3
{[%clk 0:02:39.6]} 11... Bg4 {[%clk 0:02:44]} 12. Bb2 {[%clk 0:02:26]} 12...
Rad8 {[%clk 0:02:36]} 13. h3 {[%clk 0:02:25.4]} 13... Bc8 {[%clk 0:02:24.1]} 14.
Ba3 {[%clk 0:02:17.7]} 14... Rfe8 {[%clk 0:02:22.3]} 15. Rb1 {[%clk 0:02:12.8]}
15... g6 {[%clk 0:02:19]} 16. Qd2 {[%clk 0:01:49.8]} 16... Nh5 {[%clk
0:02:18.2]} 17. Qh6 {[%clk 0:01:40.1]} 17... Qf8 {[%clk 0:02:18.1]} 18. Qxf8+
{[%clk 0:01:33.2]} 18... Kxf8 {[%clk 0:02:17.1]} 19. g3 {[%clk 0:01:28.8]} 19...
Kg7 {[%clk 0:02:08.6]} 20. Kg2 {[%clk 0:01:27.7]} 20... b6 {[%clk 0:02:03.7]}
21. Bc1 {[%clk 0:01:03.3]} 21... a5 {[%clk 0:02:00.6]} 22. Bg5 {[%clk
0:00:58.5]} 22... f6 {[%clk 0:01:59.8]} 23. Bd2 {[%clk 0:00:58]} 23... Bd7
{[%clk 0:01:59.6]} 24. Bb5 {[%clk 0:00:45.3]} 24... Ne7 {[%clk 0:01:54.7]} 25.
g4 {[%clk 0:00:36.3]} 25... Nf4+ {[%clk 0:01:53.9]} 26. Bxf4 {[%clk 0:00:36.4]}
26... exf4 {[%clk 0:01:54.7]} 27. c4 {[%clk 0:00:31.9]} 27... Ng8 {[%clk
0:01:39.7]} 28. Nd2 {[%clk 0:00:30.4]} 28... g5 {[%clk 0:01:38.5]} 29. Bxd7
{[%clk 0:00:30]} 29... Rxd7 {[%clk 0:01:38.3]} 30. Kf3 {[%clk 0:00:27.4]} 30...
Rde7 {[%clk 0:01:34.7]} 31. Rb5 {[%clk 0:00:26.7]} 31... Nh6 {[%clk 0:01:21.6]}
32. Reb1 {[%clk 0:00:25.1]} 32... Nf7 {[%clk 0:01:20.5]} 33. Re1 {[%clk
0:00:21.8]} 33... h5 {[%clk 0:01:16.8]} 34. Nb1 {[%clk 0:00:21.2]} 34... Rh8
{[%clk 0:01:15.9]} 35. Kg2 {[%clk 0:00:18.5]} 35... hxg4 {[%clk 0:01:15.1]} 36.
hxg4 {[%clk 0:00:19.4]} 36... Rh4 {[%clk 0:01:15]} 37. f3 {[%clk 0:00:19.6]}
37... Kg6 {[%clk 0:01:13.3]} 38. Rh1 {[%clk 0:00:18.3]} 38... Rxh1 {[%clk
0:01:12.4]} 39. Kxh1 {[%clk 0:00:19.2]} 39... Re8 {[%clk 0:01:12]} 40. Kg2
{[%clk 0:00:19.2]} 40... Rh8 {[%clk 0:01:11.8]} 41. Nc3 {[%clk 0:00:19.4]} 41...
Kg7 {[%clk 0:01:04.1]} 42. Rb1 {[%clk 0:00:18.7]} 42... Nd8 {[%clk 0:01:01.8]}
43. Nd5 {[%clk 0:00:18.1]} 43... Ne6 {[%clk 0:01:01]} 44. c3 {[%clk 0:00:18.2]}
44... Kf7 {[%clk 0:00:59.1]} 45. Re1 {[%clk 0:00:17.5]} 45... Kg7 {[%clk
0:00:57.5]} 46. Rb1 {[%clk 0:00:16.8]} 46... Kf7 {[%clk 0:00:57.2]} 47. Rb2
{[%clk 0:00:16.4]} 47... Kg7 {[%clk 0:00:57]} 48. Re2 {[%clk 0:00:16.1]} 48...
Kf7 {[%clk 0:00:56.8]} 49. Rc2 {[%clk 0:00:15.6]} 49... Kg7 {[%clk 0:00:55.7]}
50. Rd2 {[%clk 0:00:15.9]} 50... Kf7 {[%clk 0:00:55.6]} 51. Re2 {[%clk
0:00:16.3]} 51... Kg7 {[%clk 0:00:55.6]} 52. e5 {[%clk 0:00:16.7]} 52... fxe5
{[%clk 0:00:55.4]} 53. dxe5 {[%clk 0:00:17.6]} 53... dxe5 {[%clk 0:00:53.1]} 54.
Rxe5 {[%clk 0:00:17]} 54... Nc5 {[%clk 0:00:52.5]} 55. Re7+ {[%clk 0:00:16.3]}
55... Kg6 {[%clk 0:00:52.6]} 56. Rxc7 {[%clk 0:00:16]} 56... Nxa4 {[%clk
0:00:52.6]} 57. Rc6+ {[%clk 0:00:15.5]} 57... Kg7 {[%clk 0:00:51.6]} 58. Nxb6
{[%clk 0:00:15.2]} 58... Nxc3 {[%clk 0:00:51.4]} 59. c5 {[%clk 0:00:13.3]} 59...
Rd8 {[%clk 0:00:49.3]} 60. Nc4 {[%clk 0:00:12.7]} 60... Rd4 {[%clk 0:00:43.7]}
61. Nxa5 {[%clk 0:00:10.9]} 61... Rd2+ {[%clk 0:00:41.8]} 62. Kf1 {[%clk
0:00:10.8]} 62... Nd5 {[%clk 0:00:39.3]} 63. Rd6 {[%clk 0:00:09.4]} 63... Ne3+
{[%clk 0:00:38.5]} 64. Ke1 {[%clk 0:00:09.7]} 64... Ra2 {[%clk 0:00:37.5]} 65.
Nc6 {[%clk 0:00:08.6]} 65... Rc2 {[%clk 0:00:35.3]} 66. Nd4 {[%clk 0:00:07.3]}
66... Rc4 {[%clk 0:00:28.4]} 67. Kd2 {[%clk 0:00:06]} 67... Kf7 {[%clk
0:00:25.1]} 68. Nb3 {[%clk 0:00:06.1]} 68... Rc2+ {[%clk 0:00:22.2]} 69. Kd3
{[%clk 0:00:05.7]} 69... Rb2 {[%clk 0:00:22.1]} 70. Kc3 {[%clk 0:00:05.3]} 70...
Rc2+ {[%clk 0:00:20.1]} 71. Kb4 {[%clk 0:00:05.4]} 71... Rc4+ {[%clk 0:00:20.2]}
72. Kb5 {[%clk 0:00:05.3]} 72... Rc3 {[%clk 0:00:20]} 73. Nd4 {[%clk 0:00:04.6]}
73... Rc1 {[%clk 0:00:13.8]} 74. c6 {[%clk 0:00:04.6]} 74... Nd1 {[%clk
0:00:12.1]} 75. Kb6 {[%clk 0:00:03.7]} 75... Nb2 {[%clk 0:00:10.8]} 76. Kb7
{[%clk 0:00:03.1]} 76... Nc4 {[%clk 0:00:09.7]} 77. Rd7+ {[%clk 0:00:02.8]}
77... Ke8 {[%clk 0:00:09.8]} 78. Rh7 {[%clk 0:00:02.5]} 78... Nd6+ {[%clk
0:00:09.1]} 79. Kc7 {[%clk 0:00:02.7]} 79... Nc4 {[%clk 0:00:04.7]} 80. Rh8+
{[%clk 0:00:02.8]} 80... Kf7 {[%clk 0:00:04.9]} 81. Rh7+ {[%clk 0:00:03.7]}
81... Kg8 {[%clk 0:00:04.5]} 82. Rd7 {[%clk 0:00:03.4]} 82... Na5 {[%clk
0:00:03.8]} 83. Rd8+ {[%clk 0:00:03.8]} 83... Kf7 {[%clk 0:00:03.4]} 84. Kb6
{[%clk 0:00:04.3]} 84... Nc4+ {[%clk 0:00:02.7]} 85. Ka7 {[%clk 0:00:03.9]}
85... Ne5 {[%clk 0:00:02]} 86. c7 {[%clk 0:00:02.9]} 1-0